bitfinex/quotes_BTCUSD_20230907
["timestamp","ask_amount","ask_price","bid_price","bid_amount"]
[1694070587963,4.65267026,25782.0,25781.0,0.02040672]
[1694070588184,4.65231026,25782.0,25781.0,0.02040672]
[1694070588401,4.65225026,25782.0,25781.0,0.02040672]
[1694070588615,4.65219026,25782.0,25781.0,0.02040672]
[1694070588824,4.65153026,25782.0,25781.0,0.02040672]
[1694070589049,4.65261026,25782.0,25781.0,0.02040672]
[1694070589282,5.04027553,25782.0,25781.0,0.02040672]
[1694070589497,5.04015553,25782.0,25781.0,0.02040672]
[1694070589718,5.03925553,25782.0,25781.0,0.02040672]
[1694070589922,5.04003553,25782.0,25781.0,0.02040672]
[1694070590139,5.03985553,25782.0,25781.0,0.02040672]
[1694070590436,5.03895553,25782.0,25781.0,0.02040672]
[1694070590688,5.03943553,25782.0,25781.0,0.02040672]
[1694070590890,5.03859553,25782.0,25781.0,0.02040672]
[1694070591103,5.03847553,25782.0,25781.0,0.02040672]
[1694070591552,5.03841553,25782.0,25781.0,0.02040672]
[1694070591971,5.03901553,25782.0,25781.0,0.02040672]
[1694070592178,5.03775553,25782.0,25781.0,0.02040672]
[1694070592600,5.03763553,25782.0,25781.0,0.02040672]
[1694070592815,4.64625026,25782.0,25781.0,0.02040672]
[1694070593045,4.64571026,25782.0,25781.0,0.02040672]
[1694070593230,4.64835026,25782.0,25781.0,0.02040672]
[1694070593455,4.64811026,25782.0,25781.0,0.02040672]
[1694070593651,4.64835026,25782.0,25781.0,0.02040672]
[1694070593864,4.64805026,25782.0,25781.0,0.02040672]
[1694070594074,4.64529026,25782.0,25781.0,0.02040672]
[1694070594221,4.65009026,25782.0,25781.0,0.02040672]
[1694070594434,4.64967026,25782.0,25781.0,0.02040672]
[1694070594866,4.74442474,25782.0,25781.0,0.02040672]
[1694070595038,4.74514474,25782.0,25781.0,0.02040672]
[1694070595286,4.73866474,25782.0,25781.0,0.02040672]
[1694070595711,4.73902474,25782.0,25781.0,0.02040672]
[1694070595907,4.73908474,25782.0,25781.0,0.02040672]
[1694070596138,4.73902474,25782.0,25781.0,0.02040672]
[1694070596309,4.55933823,25782.0,25781.0,0.02040672]
[1694070596685,4.56695823,25782.0,25781.0,0.02040672]
[1694070596909,4.56749823,25782.0,25781.0,0.02040672]
[1694070597132,4.56701823,25782.0,25781.0,0.02040672]
[1694070597339,4.56635823,25782.0,25781.0,0.02040672]
[1694070597521,4.56407823,25782.0,25781.0,0.02040672]
[1694070597734,4.56359823,25782.0,25781.0,0.02040672]
[1694070597944,4.56215823,25782.0,25781.0,0.02040672]
[1694070598164,4.56203823,25782.0,25781.0,0.02040672]
[1694070598378,4.56185823,25782.0,25781.0,0.02040672]
[1694070598592,4.56179823,25782.0,25781.0,0.02040672]
[1694070598810,4.56167823,25782.0,25781.0,0.02040672]
[1694070599034,4.56263823,25782.0,25781.0,0.02040672]
[1694070599227,4.56251823,25782.0,25781.0,0.02040672]
[1694070599441,4.56245823,25782.0,25781.0,0.02040672]
[1694070599661,4.80188363,25782.0,25781.0,0.02040672]
[1694070599870,4.80086363,25782.0,25781.0,0.02040672]
[1694070600080,4.80068363,25782.0,25781.0,0.02040672]
[1694070600338,4.56371823,25782.0,25781.0,0.02040672]
[1694070600556,4.56293823,25782.0,25781.0,0.02040672]
[1694070600788,4.56263823,25782.0,25781.0,0.02040672]
[1694070600978,4.56545823,25782.0,25781.0,0.02040672]
[1694070601211,4.56683823,25782.0,25781.0,0.02040672]
[1694070601422,4.56629823,25782.0,25781.0,0.02040672]
[1694070601622,4.56617823,25782.0,25781.0,0.02040672]
[1694070601840,4.59673823,25782.0,25781.0,0.02040672]
[1694070601968,5.44505823,25782.0,25781.0,0.02040672]
[1694070602175,5.75648453,25782.0,25781.0,0.02040672]
[1694070602394,5.75540453,25782.0,25781.0,0.02040672]
[1694070602607,5.75456453,25782.0,25781.0,0.02040672]
[1694070602820,5.44373823,25782.0,25781.0,0.02040672]
[1694070603049,5.44325823,25782.0,25781.0,0.02040672]
[1694070603449,5.30717823,25782.0,25781.0,0.02040672]
[1694070603657,5.74928453,25782.0,25781.0,0.02040672]
[1694070603860,5.30831823,25782.0,25781.0,0.02040672]
[1694070604013,5.75612453,25782.0,25781.0,0.02040672]
[1694070604225,5.75504453,25782.0,25781.0,0.02040672]
[1694070604430,5.44313823,25782.0,25781.0,0.02040672]
[1694070604634,5.43953823,25782.0,25781.0,0.02040672]
[1694070604837,5.44445823,25782.0,25781.0,0.02040672]
[1694070605045,5.44217823,25782.0,25781.0,0.02040672]
[1694070605272,5.44325823,25782.0,25781.0,0.02040672]
[1694070605510,5.44265823,25782.0,25781.0,0.02040672]
[1694070605691,5.44181823,25782.0,25781.0,0.02040672]
[1694070605920,5.44133823,25782.0,25781.0,0.02040672]
[1694070606127,5.44061823,25782.0,25781.0,0.02040672]
[1694070606337,5.30663823,25782.0,25781.0,0.02040672]
[1694070606516,5.61626453,25782.0,25781.0,0.02040672]
[1694070606823,5.61542453,25782.0,25781.0,0.02040672]
[1694070607037,5.61620453,25782.0,25781.0,0.02040672]
[1694070607164,5.61602453,25782.0,25781.0,0.02040672]
[1694070607358,5.61578453,25782.0,25781.0,0.02040672]
[1694070607621,5.61602453,25782.0,25781.0,0.02040672]
[1694070607822,5.61338453,25782.0,25781.0,0.02040672]
[1694070608082,5.61248453,25782.0,25781.0,0.02040672]
[1694070608414,5.30279823,25782.0,25781.0,0.02040672]
[1694070608603,5.30633823,25782.0,25781.0,0.02040672]
[1694070608824,5.30609823,25782.0,25781.0,0.02040672]
[1694070608992,5.61668453,25782.0,25781.0,0.02040672]
[1694070609216,5.61650453,25782.0,25781.0,0.02040672]
[1694070609398,5.61608453,25782.0,25781.0,0.02040672]
[1694070609597,5.61584453,25782.0,25781.0,0.02040672]
[1694070609758,5.61566453,25782.0,25781.0,0.02040672]
[1694070609971,5.61530453,25782.0,25781.0,0.02040672]
[1694070610178,5.61512453,25782.0,25781.0,0.02040672]
[1694070610386,5.61446453,25782.0,25781.0,0.02040672]
[1694070610624,5.61428453,25782.0,25781.0,0.02040672]
[1694070610842,5.61386453,25782.0,25781.0,0.02040672]
[1694070611066,5.61326453,25782.0,25781.0,0.02040672]
[1694070611270,5.61296453,25782.0,25781.0,0.02040672]
[1694070611472,5.30393823,25782.0,25781.0,0.02040672]
[1694070611672,5.60894453,25782.0,25781.0,0.02040672]
[1694070611877,5.29427823,25782.0,25781.0,0.02040672]
[1694070612076,5.60198453,25782.0,25781.0,0.02040672]
[1694070612297,5.29169823,25782.0,25781.0,0.02040672]
[1694070612493,5.19172375,25782.0,25781.0,0.02040672]
[1694070612908,5.3766307,25782.0,25781.0,0.02040672]
[1694070613111,5.19100375,25782.0,25781.0,0.02040672]
[1694070613319,5.19064375,25782.0,25781.0,0.02040672]
[1694070613522,5.19058375,25782.0,25781.0,0.02040672]
[1694070613721,5.50063005,25782.0,25781.0,0.02040672]
[1694070613953,5.19076375,25782.0,25781.0,0.02040672]
[1694070614157,5.19112375,25782.0,25781.0,0.02040672]
[1694070614362,5.19118375,25782.0,25781.0,0.02040672]
[1694070614557,5.19106375,25782.0,25781.0,0.02040672]
[1694070614764,5.19094375,25782.0,25781.0,0.02040672]
[1694070614929,5.19088375,25782.0,25781.0,0.02040672]
[1694070615584,5.19082375,25782.0,25781.0,0.02040672]
[1694070615791,5.19100375,25782.0,25781.0,0.02040672]
[1694070615996,5.19202375,25782.0,25781.0,0.02040672]
[1694070616224,5.19148375,25782.0,25781.0,0.02040672]
[1694070616455,5.19118375,25782.0,25781.0,0.02040672]
[1694070616699,5.19334375,25782.0,25781.0,0.02040672]
[1694070617112,5.19250375,25782.0,25781.0,0.02040672]
[1694070617345,5.19190375,25782.0,25781.0,0.02040672]
[1694070617525,5.19340375,25782.0,25781.0,0.02040672]
[1694070618144,5.19358375,25782.0,25781.0,0.02040672]
[1694070618356,5.40643075,25782.0,25781.0,0.02040672]
[1694070618552,5.40277075,25782.0,25781.0,0.02040672]
[1694070618751,5.39089075,25782.0,25781.0,0.02040672]
[1694070619011,4.69107075,25782.0,25781.0,0.02040672]
[1694070619225,4.69113075,25782.0,25781.0,0.02040672]
[1694070619442,4.69125075,25782.0,25781.0,0.02040672]
[1694070619631,4.69131075,25782.0,25781.0,0.02040672]
[1694070619845,4.69149075,25782.0,25781.0,0.02040672]
[1694070620044,4.68573075,25782.0,25781.0,0.02040672]
[1694070620366,4.68777075,25782.0,25781.0,0.02040672]
[1694070620614,4.68789075,25782.0,25781.0,0.02040672]
[1694070620799,4.68807075,25782.0,25781.0,0.02040672]
[1694070621028,4.68873075,25782.0,25781.0,0.02040672]
[1694070621250,4.68891075,25782.0,25781.0,0.02040672]
[1694070621463,4.68915075,25782.0,25781.0,0.02040672]
[1694070621674,4.68933075,25782.0,25781.0,0.02040672]
[1694070621862,4.68843075,25782.0,25781.0,0.02040672]
[1694070622060,4.68855075,25782.0,25781.0,0.02040672]
[1694070622272,4.68849075,25782.0,25781.0,0.02040672]
[1694070622568,4.68705075,25782.0,25781.0,0.02040672]
[1694070622764,4.68969075,25782.0,25781.0,0.02040672]
[1694070622966,4.68981075,25782.0,25781.0,0.02040672]
[1694070623179,4.69011075,25782.0,25781.0,0.02040672]
[1694070623385,4.69017075,25782.0,25781.0,0.02040672]
[1694070623505,4.69065075,25782.0,25781.0,0.02040672]
[1694070623728,4.69077075,25782.0,25781.0,0.02040672]
[1694070623986,4.69095075,25782.0,25781.0,0.02040672]
[1694070624376,4.69119075,25782.0,25781.0,0.02040672]
[1694070624803,4.68897075,25782.0,25781.0,0.02040672]
[1694070624989,4.69107075,25782.0,25781.0,0.02040672]
[1694070625235,4.69131075,25782.0,25781.0,0.02040672]
[1694070625437,4.69149075,25782.0,25781.0,0.02040672]
[1694070625668,4.69155075,25782.0,25781.0,0.02040672]
[1694070625836,4.69185075,25782.0,25781.0,0.02040672]
[1694070626067,4.69203075,25782.0,25781.0,0.02040672]
[1694070626233,4.69215075,25782.0,25781.0,0.02040672]
[1694070626435,4.69227075,25782.0,25781.0,0.02040672]
[1694070626649,4.69305075,25782.0,25781.0,0.02040672]
[1694070626860,4.69317075,25782.0,25781.0,0.02040672]
[1694070627023,4.69323075,25782.0,25781.0,0.02040672]
[1694070627244,4.69389075,25782.0,25781.0,0.02040672]
[1694070627517,4.69227075,25782.0,25781.0,0.02040672]
[1694070627725,4.69239075,25782.0,25781.0,0.02040672]
[1694070627976,4.69131075,25782.0,25781.0,0.02040672]
[1694070628225,4.69329075,25782.0,25781.0,0.02040672]
[1694070628430,4.69341075,25782.0,25781.0,0.02040672]
[1694070628628,4.69359075,25782.0,25781.0,0.02040672]
[1694070628834,4.69197075,25782.0,25781.0,0.02040672]
[1694070629208,4.69221075,25782.0,25781.0,0.02040672]
[1694070629452,4.69233075,25782.0,25781.0,0.02040672]
[1694070629692,4.69425075,25782.0,25781.0,0.02040672]
[1694070629878,4.69431075,25782.0,25781.0,0.02040672]
[1694070630335,4.69293075,25782.0,25781.0,0.02040672]
[1694070630579,4.69317075,25782.0,25781.0,0.02040672]
[1694070630835,4.69275075,25782.0,25781.0,0.02040672]
[1694070631271,4.69473075,25782.0,25781.0,0.02040672]
[1694070631467,4.69485075,25782.0,25781.0,0.02040672]
[1694070631687,4.69317075,25782.0,25781.0,0.02040672]
[1694070631903,4.67029075,25782.0,25781.0,0.02040672]
[1694070632118,4.67275075,25782.0,25781.0,0.02040672]
[1694070632322,4.67263075,25782.0,25781.0,0.02040672]
[1694070632540,4.67287075,25782.0,25781.0,0.02040672]
[1694070632745,4.67359075,25782.0,25781.0,0.02040672]
[1694070632950,4.67215075,25782.0,25781.0,0.02040672]
[1694070633206,4.67233075,25782.0,25781.0,0.02040672]
[1694070633391,4.67203075,25782.0,25781.0,0.02040672]
[1694070633592,4.67215075,25782.0,25781.0,0.02040672]
[1694070633811,4.67233075,25782.0,25781.0,0.02040672]
[1694070634016,4.67239075,25782.0,25781.0,0.02040672]
[1694070634240,4.67245075,25782.0,25781.0,0.02040672]
[1694070634378,4.67263075,25782.0,25781.0,0.02040672]
[1694070634583,4.67251075,25782.0,25781.0,0.02040672]
[1694070634807,4.67257075,25782.0,25781.0,0.02040672]
[1694070634980,4.67263075,25782.0,25781.0,0.02040672]
[1694070635196,4.67269075,25782.0,25781.0,0.02040672]
[1694070635399,4.67251075,25782.0,25781.0,0.02040672]
[1694070635825,4.67221075,25782.0,25781.0,0.02040672]
[1694070636230,4.67215075,25782.0,25781.0,0.02040672]
[1694070636456,4.67221075,25782.0,25781.0,0.02040672]
[1694070636661,4.67227075,25782.0,25781.0,0.02040672]
[1694070636887,4.67281075,25782.0,25781.0,0.02040672]
[1694070637131,4.67233075,25782.0,25781.0,0.02040672]
[1694070637358,4.67239075,25782.0,25781.0,0.02040672]
[1694070637507,4.67251075,25782.0,25781.0,0.02040672]
[1694070637690,4.67263075,25782.0,25781.0,0.02040672]
[1694070637887,4.67269075,25782.0,25781.0,0.02040672]
[1694070638142,4.67275075,25782.0,25781.0,0.02040672]
[1694070638349,4.67311075,25782.0,25781.0,0.02040672]
[1694070638760,4.67329075,25782.0,25781.0,0.02040672]
[1694070638976,4.67335075,25782.0,25781.0,0.02040672]
[1694070639118,4.67347075,25782.0,25781.0,0.02040672]
[1694070639332,4.67353075,25782.0,25781.0,0.02040672]
[1694070639535,4.67359075,25782.0,25781.0,0.02040672]
[1694070639789,4.67347075,25782.0,25781.0,0.02040672]
[1694070639998,4.67359075,25782.0,25781.0,0.02040672]
[1694070640206,4.67377075,25782.0,25781.0,0.02040672]
[1694070640420,4.67455075,25782.0,25781.0,0.02040672]
[1694070640618,4.67389075,25782.0,25781.0,0.02040672]
[1694070640872,4.67383075,25782.0,25781.0,0.02040672]
[1694070641099,4.67611075,25782.0,25781.0,0.02040672]
[1694070641302,4.67689075,25782.0,25781.0,0.02040672]
[1694070641521,4.67665075,25782.0,25781.0,0.02040672]
[1694070641720,4.68007075,25782.0,25781.0,0.02040672]
[1694070641928,4.67947075,25782.0,25781.0,0.02040672]
[1694070642234,4.68145075,25782.0,25781.0,0.02040672]
[1694070642433,4.46170375,25782.0,25781.0,0.02040672]
[1694070642679,4.46830375,25782.0,25781.0,0.02040672]
[1694070642891,4.46824375,25782.0,25781.0,0.02040672]
[1694070643104,4.46812375,25782.0,25781.0,0.02040672]
[1694070643320,4.62169695,25782.0,25781.0,0.02040672]
[1694070643543,4.62031695,25782.0,25781.0,0.02040672]
[1694070643752,4.9288525,25782.0,25781.0,0.02040672]
[1694070643962,4.9283725,25782.0,25781.0,0.02040672]
[1694070644150,5.6278325,25782.0,25781.0,0.02040672]
[1694070644358,5.6289725,25782.0,25781.0,0.02040672]
[1694070644603,5.6301725,25782.0,25781.0,0.02040672]
[1694070644791,5.6295125,25782.0,25781.0,0.02040672]
[1694070645001,5.6247125,25782.0,25781.0,0.02040672]
[1694070645209,5.6198525,25782.0,25781.0,0.02040672]
[1694070645358,5.6204525,25782.0,25781.0,0.02040672]
[1694070645575,5.5956725,25782.0,25781.0,0.02040672]
[1694070645776,5.5955525,25782.0,25781.0,0.02040672]
[1694070646015,5.6194325,25782.0,25781.0,0.02040672]
[1694070646211,5.5952525,25782.0,25781.0,0.02040672]
[1694070646559,5.5953725,25782.0,25781.0,0.02040672]
[1694070646767,5.6193125,25782.0,25781.0,0.02040672]
[1694070646976,5.6194325,25782.0,25781.0,0.02040672]
[1694070647225,5.6225525,25782.0,25781.0,0.02040672]
[1694070647437,5.6226725,25782.0,25781.0,0.02040672]
[1694070647649,5.6225525,25782.0,25781.0,0.02040672]
[1694070647859,5.6221325,25782.0,25781.0,0.02040672]
[1694070648045,5.6220125,25782.0,25781.0,0.02040672]
[1694070648245,5.6218325,25782.0,25781.0,0.02040672]
[1694070648482,5.6211725,25782.0,25781.0,0.02040672]
[1694070648690,5.6210525,25782.0,25781.0,0.02040672]
[1694070648928,5.6208125,25782.0,25781.0,0.02040672]
[1694070649107,5.6206925,25782.0,25781.0,0.02040672]
[1694070649312,5.6205725,25782.0,25781.0,0.02040672]
[1694070649538,5.6199125,25782.0,25781.0,0.02040672]
[1694070649753,5.6332325,25782.0,25781.0,0.02040672]
[1694070649959,5.6337125,25782.0,25781.0,0.02040672]
[1694070650169,5.6335925,25782.0,25781.0,0.02040672]
[1694070650391,5.6316125,25782.0,25781.0,0.02040672]
[1694070650607,5.6307725,25782.0,25781.0,0.02040672]
[1694070650800,5.6306525,25782.0,25781.0,0.02040672]
[1694070651008,5.6289725,25782.0,25781.0,0.02040672]
[1694070651211,5.6288525,25782.0,25781.0,0.02040672]
[1694070651422,5.6287325,25782.0,25781.0,0.02040672]
[1694070651631,5.6285525,25782.0,25781.0,0.02040672]
[1694070651836,5.6284325,25782.0,25781.0,0.02040672]
[1694070652012,5.6283125,25782.0,25781.0,0.02040672]
[1694070652213,5.6281925,25782.0,25781.0,0.02040672]
[1694070652561,5.6185325,25782.0,25781.0,0.02040672]
[1694070652674,5.5145393,25782.0,25781.0,0.02040672]
[1694070652875,5.5144193,25782.0,25781.0,0.02040672]
[1694070653082,5.5147193,25782.0,25781.0,0.02040672]
[1694070653330,5.5146593,25782.0,25781.0,0.02040672]
[1694070653529,5.5165793,25782.0,25781.0,0.02040672]
[1694070653761,5.90298457,25782.0,25781.0,0.02040672]
[1694070654166,5.90286457,25782.0,25781.0,0.02040672]
[1694070654311,5.90358457,25782.0,25781.0,0.02040672]
[1694070654516,5.90322457,25782.0,25781.0,0.02040672]
[1694070654779,5.90304457,25782.0,25781.0,0.02040672]
[1694070654966,5.5141193,25782.0,25781.0,0.02040672]
[1694070655169,5.5113593,25782.0,25781.0,0.02040672]
[1694070655310,5.5112393,25782.0,25781.0,0.02040672]
[1694070655510,5.5111193,25782.0,25781.0,0.02040672]
[1694070655722,5.5114193,25782.0,25781.0,0.02040672]
[1694070655985,5.5115393,25782.0,25781.0,0.02040672]
[1694070656183,5.5114793,25782.0,25781.0,0.02040672]
[1694070656405,5.5114193,25782.0,25781.0,0.02040672]
[1694070656645,5.5131593,25782.0,25781.0,0.02040672]
[1694070657103,5.5130393,25782.0,25781.0,0.02040672]
[1694070657314,5.5129793,25782.0,25781.0,0.02040672]
[1694070657449,5.5129193,25782.0,25781.0,0.02040672]
[1694070657667,5.5127393,25782.0,25781.0,0.02040672]
[1694070657870,5.5126793,25782.0,25781.0,0.02040672]
[1694070658082,5.5124393,25782.0,25781.0,0.02040672]
[1694070658286,5.5095593,25782.0,25781.0,0.02040672]
[1694070658493,5.5094393,25782.0,25781.0,0.02040672]
[1694070658912,5.5093793,25782.0,25781.0,0.02040672]
[1694070659115,5.5093193,25782.0,25781.0,0.02040672]
[1694070659537,5.5092593,25782.0,25781.0,0.02040672]
[1694070659770,5.89542457,25782.0,25781.0,0.02040672]
[1694070659980,5.89680457,25782.0,25781.0,0.02040672]
[1694070660218,5.89686457,25782.0,25781.0,0.02040672]
[1694070660588,5.5105793,25782.0,25781.0,0.02040672]
[1694070660793,5.5105193,25782.0,25781.0,0.02040672]
[1694070661200,5.5103993,25782.0,25781.0,0.02040672]
[1694070661438,5.5103393,25782.0,25781.0,0.02040672]
[1694070661648,5.5105193,25782.0,25781.0,0.02040672]
[1694070661858,5.5132793,25782.0,25781.0,0.02040672]
[1694070662074,5.5132193,25782.0,25781.0,0.02040672]
[1694070662291,5.90076457,25782.0,25781.0,0.02040672]
[1694070662492,5.90166457,25782.0,25781.0,0.02040672]
[1694070662697,5.90682457,25782.0,25781.0,0.02040672]
[1694070662910,5.90838457,25782.0,25781.0,0.02040672]
[1694070663112,6.06912457,25782.0,25781.0,0.02040672]
[1694070663312,6.06204457,25782.0,25781.0,0.02040672]
[1694070663488,6.05736457,25782.0,25781.0,0.02040672]
[1694070663707,6.05520457,25782.0,25781.0,0.02040672]
[1694070663897,6.05484457,25782.0,25781.0,0.02040672]
[1694070664229,6.05052457,25782.0,25781.0,0.02040672]
[1694070664450,6.05028457,25782.0,25781.0,0.02040672]
[1694070664660,6.05376457,25782.0,25781.0,0.02040672]
[1694070664866,6.05532457,25782.0,25781.0,0.02040672]
[1694070665058,6.05496457,25782.0,25781.0,0.02040672]
[1694070665301,6.05616457,25782.0,25781.0,0.02040672]
[1694070665489,6.05508457,25782.0,25781.0,0.02040672]
[1694070665693,6.05448457,25782.0,25781.0,0.02040672]
[1694070665934,6.05832457,25782.0,25781.0,0.02040672]
[1694070666193,6.06540457,25782.0,25781.0,0.02040672]
[1694070666405,6.06444457,25782.0,25781.0,0.02040672]
[1694070666617,6.06300457,25782.0,25781.0,0.02040672]
[1694070666831,6.06168457,25782.0,25781.0,0.02040672]
[1694070667042,6.06120457,25782.0,25781.0,0.02040672]
[1694070667250,6.06216457,25782.0,25781.0,0.02040672]
[1694070667470,6.06132457,25782.0,25781.0,0.02040672]
[1694070667691,6.06060457,25782.0,25781.0,0.02040672]
[1694070667915,6.06588457,25782.0,25781.0,0.02040672]
[1694070668129,6.06504457,25782.0,25781.0,0.02040672]
[1694070668341,6.06456457,25782.0,25781.0,0.02040672]
[1694070668552,6.06408457,25782.0,25781.0,0.02040672]
[1694070668778,6.06132457,25782.0,25781.0,0.02040672]
[1694070668992,6.06552457,25782.0,25781.0,0.02040672]
[1694070669219,6.06480457,25782.0,25781.0,0.02040672]
[1694070669437,6.06204457,25782.0,25781.0,0.02040672]
[1694070669653,6.06000457,25782.0,25781.0,0.02040672]
[1694070669862,6.05808457,25782.0,25781.0,0.02040672]
[1694070670072,6.05844457,25782.0,25781.0,0.02040672]
[1694070670284,6.05604457,25782.0,25781.0,0.02040672]
[1694070670492,6.05520457,25782.0,25781.0,0.02040672]
[1694070670708,6.05472457,25782.0,25781.0,0.02040672]
[1694070670897,6.05304457,25782.0,25781.0,0.02040672]
[1694070671131,6.05316457,25782.0,25781.0,0.02040672]
[1694070671390,6.05328457,25782.0,25781.0,0.02040672]
[1694070671597,6.05292457,25782.0,25781.0,0.02040672]
[1694070671822,6.05196457,25782.0,25781.0,0.02040672]
[1694070672006,6.05172457,25782.0,25781.0,0.02040672]
[1694070672247,6.05124457,25782.0,25781.0,0.02040672]
[1694070672455,6.05064457,25782.0,25781.0,0.02040672]
[1694070672697,6.05040457,25782.0,25781.0,0.02040672]
[1694070672906,6.05004457,25782.0,25781.0,0.02040672]
[1694070673098,6.05652457,25782.0,25781.0,0.02040672]
[1694070673315,6.05616457,25782.0,25781.0,0.02040672]
[1694070673545,6.05448457,25782.0,25781.0,0.02040672]
[1694070673795,6.05412457,25782.0,25781.0,0.02040672]
[1694070674261,6.05388457,25782.0,25781.0,0.02040672]
[1694070674501,5.91066457,25782.0,25781.0,0.02040672]
[1694070674737,5.90970457,25782.0,25781.0,0.02040672]
[1694070674940,5.91642457,25782.0,25781.0,0.02040672]
[1694070675213,5.91636457,25782.0,25781.0,0.02040672]
[1694070675461,6.05184457,25782.0,25781.0,0.02040672]
[1694070675732,6.05148457,25782.0,25781.0,0.02040672]
[1694070675980,5.90736457,25782.0,25781.0,0.02040672]
[1694070676268,5.90124457,25782.0,25781.0,0.02040672]
[1694070676537,5.90070457,25782.0,25781.0,0.02040672]
[1694070676747,5.90088457,25782.0,25781.0,0.02040672]
[1694070676931,5.90076457,25782.0,25781.0,0.02040672]
[1694070677386,5.90064457,25782.0,25781.0,0.02040672]
[1694070677797,5.89950457,25782.0,25781.0,0.02040672]
[1694070678215,5.89938457,25782.0,25781.0,0.02040672]
[1694070678426,5.89992457,25782.0,25781.0,0.02040672]
[1694070678639,5.5129793,25782.0,25781.0,0.02040672]
[1694070678851,5.5099193,25782.0,25781.0,0.02040672]
[1694070679112,5.5099793,25782.0,25781.0,0.02040672]
[1694070679324,5.5088993,25782.0,25781.0,0.02040672]
[1694070679532,5.5088393,25782.0,25781.0,0.02040672]
[1694070679736,5.5077593,25782.0,25781.0,0.02040672]
[1694070679942,5.5081793,25782.0,25781.0,0.02040672]
[1694070680371,5.5082393,25782.0,25781.0,0.02040672]
[1694070680557,5.5074593,25782.0,25781.0,0.02040672]
[1694070680806,5.5081193,25782.0,25781.0,0.02040672]
[1694070680986,5.5073993,25782.0,25781.0,0.02040672]
[1694070681293,5.5071593,25782.0,25781.0,0.02040672]
[1694070681542,5.5073993,25782.0,25781.0,0.02040672]
[1694070681747,5.5054793,25782.0,25781.0,0.02040672]
[1694070682147,5.5055393,25782.0,25781.0,0.02040672]
[1694070682373,5.5066193,25782.0,25781.0,0.02040672]
[1694070682607,5.5067993,25782.0,25781.0,0.02040672]
[1694070682798,5.5061993,25782.0,25781.0,0.02040672]
[1694070683019,5.5056593,25782.0,25781.0,0.02040672]
[1694070683261,5.5047593,25782.0,25781.0,0.02040672]
[1694070683494,5.5051793,25782.0,25781.0,0.02040672]
[1694070683730,5.5048793,25782.0,25781.0,0.02040672]
[1694070683950,5.5052393,25782.0,25781.0,0.02040672]
[1694070684207,5.5052993,25782.0,25781.0,0.02040672]
[1694070684448,5.5049393,25782.0,25781.0,0.02040672]
[1694070684700,5.5047593,25782.0,25781.0,0.02040672]
[1694070684929,5.5045193,25782.0,25781.0,0.02040672]
[1694070685162,5.5045793,25782.0,25781.0,0.02040672]
[1694070685275,5.5046393,25782.0,25781.0,0.02040672]
[1694070685528,5.5043393,25782.0,25781.0,0.02040672]
[1694070685731,5.5053593,25782.0,25781.0,0.02040672]
[1694070685957,5.5056593,25782.0,25781.0,0.02040672]
[1694070686194,5.5063193,25782.0,25781.0,0.02040672]
[1694070686419,5.5073393,25782.0,25781.0,0.02040672]
[1694070686654,5.5069193,25782.0,25781.0,0.02040672]
[1694070686886,5.5046393,25782.0,25781.0,0.02040672]
[1694070687113,5.5042193,25782.0,25781.0,0.02040672]
[1694070687332,5.5048793,25782.0,25781.0,0.02040672]
[1694070687537,5.5056593,25782.0,25781.0,0.02040672]
[1694070688209,5.5055993,25782.0,25781.0,0.02040672]
[1694070688409,5.5061393,25782.0,25781.0,0.02040672]
[1694070688587,5.5055393,25782.0,25781.0,0.02040672]
[1694070688792,5.5054193,25782.0,25781.0,0.02040672]
[1694070689017,5.5057193,25782.0,25781.0,0.02040672]
[1694070689223,5.5055993,25782.0,25781.0,0.02040672]
[1694070689429,5.5019993,25782.0,25781.0,0.02040672]
[1694070689633,5.5008593,25782.0,25781.0,0.02040672]
[1694070689842,5.5066793,25782.0,25781.0,0.02040672]
[1694070690054,5.5067993,25782.0,25781.0,0.02040672]
[1694070690264,5.5068593,25782.0,25781.0,0.02040672]
[1694070690661,5.5067993,25782.0,25781.0,0.02040672]
[1694070690870,5.5068593,25782.0,25781.0,0.02040672]
[1694070691428,5.5069193,25782.0,25781.0,0.02040672]
[1694070691641,5.5070393,25782.0,25781.0,0.02040672]
[1694070691910,5.5073393,25782.0,25781.0,0.02040672]
[1694070692162,5.5069193,25782.0,25781.0,0.02040672]
[1694070692366,5.5068593,25782.0,25781.0,0.02040672]
[1694070692579,5.5069793,25782.0,25781.0,0.02040672]
[1694070692808,5.5076993,25782.0,25781.0,0.02040672]
[1694070693016,5.5075793,25782.0,25781.0,0.02040672]
[1694070693221,5.5087793,25782.0,25781.0,0.02040672]
[1694070693447,5.5084793,25782.0,25781.0,0.02040672]
[1694070693846,5.5088393,25782.0,25781.0,0.02040672]
[1694070694052,5.5087193,25782.0,25781.0,0.02040672]
[1694070694424,5.5102793,25782.0,25781.0,0.02040672]
[1694070694639,5.5124393,25782.0,25781.0,0.02040672]
[1694070694848,5.5117793,25782.0,25781.0,0.02040672]
[1694070695280,5.5117193,25782.0,25781.0,0.02040672]
[1694070695445,5.5111193,25782.0,25781.0,0.02040672]
[1694070695655,5.5107593,25782.0,25781.0,0.02040672]
[1694070695891,5.5115993,25782.0,25781.0,0.02040672]
[1694070696139,5.5109393,25782.0,25781.0,0.02040672]
[1694070696736,5.5101593,25782.0,25781.0,0.02040672]
[1694070696991,5.5098593,25782.0,25781.0,0.02040672]
[1694070697162,5.5111793,25782.0,25781.0,0.02040672]
[1694070697358,5.45088351,25782.0,25781.0,0.02040672]
[1694070697559,5.45016351,25782.0,25781.0,0.02040672]
[1694070697783,5.44962351,25782.0,25781.0,0.02040672]
[1694070697931,5.44980351,25782.0,25781.0,0.02040672]
[1694070698131,5.45004351,25782.0,25781.0,0.02040672]
[1694070698576,5.44986351,25782.0,25781.0,0.02040672]
[1694070698782,5.44980351,25782.0,25781.0,0.02040672]
[1694070698985,5.45022351,25782.0,25781.0,0.02040672]
[1694070699204,5.45028351,25782.0,25781.0,0.02040672]
[1694070699407,5.45004351,25782.0,25781.0,0.02040672]
[1694070699626,5.45070351,25782.0,25781.0,0.02040672]
[1694070699850,5.45058351,25782.0,25781.0,0.02040672]
[1694070700205,5.45052351,25782.0,25781.0,0.02040672]
[1694070700439,5.45004351,25782.0,25781.0,0.02040672]
[1694070700678,5.45022351,25782.0,25781.0,0.02040672]
[1694070700915,5.45010351,25782.0,25781.0,0.02040672]
[1694070701139,5.45028351,25782.0,25781.0,0.02040672]
[1694070701369,5.45034351,25782.0,25781.0,0.02040672]
[1694070701602,5.45028351,25782.0,25781.0,0.02040672]
[1694070701842,5.84334878,25782.0,25781.0,0.02040672]
[1694070702278,5.84358878,25782.0,25781.0,0.02040672]
[1694070702503,5.84352878,25782.0,25781.0,0.02040672]
[1694070702703,5.84358878,25782.0,25781.0,0.02040672]
[1694070702917,5.84340878,25782.0,25781.0,0.02040672]
[1694070703116,5.84202878,25782.0,25781.0,0.02040672]
[1694070703295,5.83914878,25782.0,25781.0,0.02040672]
[1694070703507,5.83902878,25782.0,25781.0,0.02040672]
[1694070703910,5.83896878,25782.0,25781.0,0.02040672]
[1694070704087,5.83902878,25782.0,25781.0,0.02040672]
[1694070704290,5.83962878,25782.0,25781.0,0.02040672]
[1694070704493,5.84112878,25782.0,25781.0,0.01651202]